[Event "*** SCC Grand Prix: Titled Tuesday Blitz"]
[Site "Chess.com"]
[Date "2020.07.07"]
[Round "7"]
[White "SahajGrover"]
[Black "swimmerchess"]
[Result "0-1"]
[WhiteElo "2664"]
[BlackElo "2816"]
[TimeControl "180+1"]
[EndTime "11:20:08 PDT"]
[Termination "swimmerchess won by resignation"]

1. e4 {[%clk 0:03:00.8]} 1... c5 {[%clk 0:03:00.1]} 2. Nf3 {[%clk 0:03:00.8]}
2... d6 {[%clk 0:03:00.2]} 3. Nc3 {[%clk 0:03:00.2]} 3... Nf6 {[%clk 0:03:00.5]}
4. d4 {[%clk 0:03:00.5]} 4... cxd4 {[%clk 0:02:58.3]} 5. Nxd4 {[%clk 0:03:01.4]}
5... Nc6 {[%clk 0:02:58.1]} 6. Bg5 {[%clk 0:02:56.6]} 6... e6 {[%clk 0:02:58.1]}
7. Qd2 {[%clk 0:02:56.6]} 7... a6 {[%clk 0:02:58.1]} 8. O-O-O {[%clk 0:02:53.5]}
8... Bd7 {[%clk 0:02:58.1]} 9. Nxc6 {[%clk 0:02:44.6]} 9... Bxc6 {[%clk
0:02:58]} 10. f3 {[%clk 0:02:44.1]} 10... h6 {[%clk 0:02:56.3]} 11. Bf4 {[%clk
0:02:36.4]} 11... d5 {[%clk 0:02:56.4]} 12. e5 {[%clk 0:02:28.2]} 12... Nd7
{[%clk 0:02:53.9]} 13. Ne2 {[%clk 0:02:26.7]} 13... b5 {[%clk 0:02:49.9]} 14.
Nd4 {[%clk 0:02:26.5]} 14... Bb7 {[%clk 0:02:50.4]} 15. Kb1 {[%clk 0:02:21.3]}
15... g5 {[%clk 0:02:41.7]} 16. Bg3 {[%clk 0:02:16.2]} 16... Bg7 {[%clk
0:02:41.1]} 17. Re1 {[%clk 0:02:06.8]} 17... Qc7 {[%clk 0:02:40.9]} 18. h4
{[%clk 0:01:58.2]} 18... gxh4 {[%clk 0:02:27.4]} 19. Rxh4 {[%clk 0:01:59.1]}
19... O-O-O {[%clk 0:02:25.1]} 20. Bxb5 {[%clk 0:01:49.5]} 20... Nxe5 {[%clk
0:02:03]} 21. Qe2 {[%clk 0:01:20.4]} 21... axb5 {[%clk 0:01:59.3]} 22. Bxe5
{[%clk 0:01:20.2]} 22... Bxe5 {[%clk 0:02:00.1]} 23. Qxe5 {[%clk 0:01:21.1]}
23... Qxe5 {[%clk 0:01:56.6]} 24. Rxe5 {[%clk 0:01:22]} 24... Rdg8 {[%clk
0:01:57.5]} 25. g4 {[%clk 0:01:19.4]} 25... b4 {[%clk 0:01:56.4]} 26. Kc1 {[%clk
0:01:09.4]} 26... Kd7 {[%clk 0:01:56.4]} 27. Kd2 {[%clk 0:01:09.3]} 27... Kd6
{[%clk 0:01:56.3]} 28. Reh5 {[%clk 0:01:09]} 28... Rg6 {[%clk 0:01:55.2]} 29. b3
{[%clk 0:00:51.3]} 29... Bc8 {[%clk 0:01:50]} 30. Rh1 {[%clk 0:00:49.3]} 30...
Bd7 {[%clk 0:01:49]} 31. g5 {[%clk 0:00:49.3]} 31... e5 {[%clk 0:01:41.2]} 32.
Rxh6 {[%clk 0:00:39.9]} 32... Ra8 {[%clk 0:01:30.9]} 33. Ne2 {[%clk 0:00:34.7]}
33... Rxa2 {[%clk 0:01:30]} 34. Rxg6+ {[%clk 0:00:34.3]} 34... fxg6 {[%clk
0:01:30.9]} 35. Ng3 {[%clk 0:00:32.4]} 35... Ke6 {[%clk 0:01:13.9]} 36. Rh6
{[%clk 0:00:32.2]} 36... Kf7 {[%clk 0:01:14.3]} 37. Rh7+ {[%clk 0:00:32.5]}
37... Ke6 {[%clk 0:01:13.7]} 38. Rg7 {[%clk 0:00:31.8]} 38... Be8 {[%clk
0:01:13.6]} 39. Rb7 {[%clk 0:00:32.3]} 39... d4 {[%clk 0:01:05.4]} 40. Rb6+
{[%clk 0:00:27.5]} 40... Kd5 {[%clk 0:00:57.1]} 41. Ne4 {[%clk 0:00:20.2]} 41...
Bc6 {[%clk 0:00:57.6]} 42. Rxb4 {[%clk 0:00:19.8]} 42... Ke6 {[%clk 0:00:56.4]}
43. Rb6 {[%clk 0:00:19.5]} 43... Kd7 {[%clk 0:00:56.4]} 44. Rb8 {[%clk 0:00:18]}
44... Kc7 {[%clk 0:00:53.6]} 45. Rg8 {[%clk 0:00:16.7]} 45... Bd5 {[%clk
0:00:54.1]} 46. Rg7+ {[%clk 0:00:14.8]} 46... Kd8 {[%clk 0:00:53.3]} 47. Kd3
{[%clk 0:00:15.1]} 47... Ra6 {[%clk 0:00:48.7]} 48. Nf6 {[%clk 0:00:15.1]} 48...
Bxf3 {[%clk 0:00:48.2]} 49. Rxg6 {[%clk 0:00:14.2]} 49... Rd6 {[%clk 0:00:46.5]}
50. Rg7 {[%clk 0:00:12.4]} 50... Re6 {[%clk 0:00:39.6]} 51. Ne4 {[%clk
0:00:11.4]} 51... Rc6 {[%clk 0:00:33.6]} 52. g6 {[%clk 0:00:10.6]} 52... Bd1
{[%clk 0:00:32.6]} 53. Rg8+ {[%clk 0:00:09.7]} 53... Ke7 {[%clk 0:00:31]} 54. c4
{[%clk 0:00:06.8]} 54... Bxb3 {[%clk 0:00:29.6]} 55. g7 {[%clk 0:00:04.9]} 55...
Bxc4+ {[%clk 0:00:28.9]} 0-1

[Event "*** SCC Grand Prix: Titled Tuesday Blitz"]
[Site "Chess.com"]
[Date "2020.07.07"]
[Round "7"]
[White "Benjoneliere44"]
[Black "Ginger_GM"]
[Result "0-1"]
[WhiteElo "2530"]
[BlackElo "2673"]
[TimeControl "180+1"]
[EndTime "11:20:08 PDT"]
[Termination "Ginger_GM won on time"]

1. d4 {[%clk 0:03:00.9]} 1... e6 {[%clk 0:02:59.5]} 2. Nf3 {[%clk 0:02:59.8]}
2... f5 {[%clk 0:02:59.4]} 3. g3 {[%clk 0:02:59.5]} 3... Nf6 {[%clk 0:02:59.4]}
4. Bg2 {[%clk 0:02:59.9]} 4... Be7 {[%clk 0:02:59.6]} 5. O-O {[%clk 0:03:00.5]}
5... O-O {[%clk 0:02:58.6]} 6. c4 {[%clk 0:03:01]} 6... d6 {[%clk 0:02:54.6]} 7.
b4 {[%clk 0:02:59.9]} 7... a5 {[%clk 0:02:53.7]} 8. b5 {[%clk 0:02:59.4]} 8...
Ne4 {[%clk 0:02:53.8]} 9. Bb2 {[%clk 0:02:52.8]} 9... a4 {[%clk 0:02:53.7]} 10.
a3 {[%clk 0:02:47.9]} 10... c6 {[%clk 0:02:53.1]} 11. bxc6 {[%clk 0:02:43.1]}
11... Nxc6 {[%clk 0:02:32.5]} 12. Nc3 {[%clk 0:02:42.8]} 12... Qa5 {[%clk
0:02:21.2]} 13. Rc1 {[%clk 0:02:39.3]} 13... Qa6 {[%clk 0:02:08.3]} 14. d5
{[%clk 0:02:33]} 14... Na5 {[%clk 0:02:05.7]} 15. dxe6 {[%clk 0:02:04]} 15...
Nxc4 {[%clk 0:01:59.8]} 16. Ba1 {[%clk 0:02:03.4]} 16... Bxe6 {[%clk 0:01:55]}
17. Nd4 {[%clk 0:02:02.1]} 17... Bd7 {[%clk 0:01:32.2]} 18. Nxe4 {[%clk
0:01:57.8]} 18... fxe4 {[%clk 0:01:32.1]} 19. Bxe4 {[%clk 0:01:57.6]} 19... Ne5
{[%clk 0:01:11.1]} 20. Rb1 {[%clk 0:01:21]} 20... Rab8 {[%clk 0:01:09.3]} 21.
Qc2 {[%clk 0:01:14.2]} 21... h6 {[%clk 0:01:05.7]} 22. f4 {[%clk 0:00:56.1]}
22... Ng4 {[%clk 0:01:05.2]} 23. h3 {[%clk 0:00:47.5]} 23... Ne3 {[%clk
0:00:59.6]} 24. Qc3 {[%clk 0:00:47.2]} 24... Nxf1 {[%clk 0:00:54.6]} 25. Rxf1
{[%clk 0:00:31.6]} 25... Bf6 {[%clk 0:00:50.8]} 26. Bb1 {[%clk 0:00:25.6]} 26...
Bxh3 {[%clk 0:00:39.9]} 27. Rd1 {[%clk 0:00:16.3]} 27... Qc6 {[%clk 0:00:19.3]}
28. Nxc6 {[%clk 0:00:11.4]} 28... Bxc3 {[%clk 0:00:19.3]} 29. Ne7+ {[%clk
0:00:11.9]} 29... Kf7 {[%clk 0:00:19.5]} 30. Bxc3 {[%clk 0:00:11.8]} 30... Kxe7
{[%clk 0:00:19.9]} 31. Bxg7 {[%clk 0:00:11.9]} 31... Rg8 {[%clk 0:00:20]} 32.
Bxh6 {[%clk 0:00:12.5]} 32... Rxg3+ {[%clk 0:00:19.9]} 33. Kh2 {[%clk
0:00:11.8]} 33... Rbg8 {[%clk 0:00:19.7]} 34. Bg5+ {[%clk 0:00:11.4]} 34...
R3xg5 {[%clk 0:00:17.3]} 35. fxg5 {[%clk 0:00:12.3]} 35... Be6 {[%clk
0:00:17.4]} 36. Rg1 {[%clk 0:00:11.7]} 36... b5 {[%clk 0:00:16.2]} 37. g6 {[%clk
0:00:11.8]} 37... b4 {[%clk 0:00:16]} 38. axb4 {[%clk 0:00:11.4]} 38... a3
{[%clk 0:00:16.4]} 39. Bd3 {[%clk 0:00:11]} 39... a2 {[%clk 0:00:16.5]} 40. b5
{[%clk 0:00:11.6]} 40... Kf6 {[%clk 0:00:15.4]} 41. b6 {[%clk 0:00:11.7]} 41...
Rb8 {[%clk 0:00:15.6]} 42. g7 {[%clk 0:00:08.2]} 42... Rxb6 {[%clk 0:00:15.4]}
43. Kg3 {[%clk 0:00:05]} 43... Kxg7 {[%clk 0:00:14.3]} 44. Kf4+ {[%clk
0:00:05.5]} 44... Kf6 {[%clk 0:00:14.5]} 45. Ke3 {[%clk 0:00:06.1]} 45... Rb3
{[%clk 0:00:13.2]} 46. Kd2 {[%clk 0:00:06]} 46... Ra3 {[%clk 0:00:13.2]} 47. Ra1
{[%clk 0:00:04.8]} 47... Ke5 {[%clk 0:00:13.6]} 48. e3 {[%clk 0:00:02.6]} 48...
Bd5 {[%clk 0:00:12.6]} 49. Kc2 {[%clk 0:00:02.3]} 49... Ra5 {[%clk 0:00:12.5]}
50. Kd2 {[%clk 0:00:02.7]} 50... Be6 {[%clk 0:00:12.8]} 51. Kc2 {[%clk
0:00:01.5]} 51... Kd5 {[%clk 0:00:13]} 0-1

[Event "*** SCC Grand Prix: Titled Tuesday Blitz"]
[Site "Chess.com"]
[Date "2020.07.07"]
[Round "7"]
[White "JozefKneht"]
[Black "Mazetovic"]
[Result "1-0"]
[WhiteElo "2493"]
[BlackElo "2738"]
[TimeControl "180+1"]
[EndTime "11:20:09 PDT"]
[Termination "JozefKneht won by resignation"]

1. e4 {[%clk 0:03:00.9]} 1... c5 {[%clk 0:02:59.8]} 2. Nf3 {[%clk 0:03:00.3]}
2... Nc6 {[%clk 0:02:59.6]} 3. d4 {[%clk 0:03:00.5]} 3... cxd4 {[%clk
0:02:59.7]} 4. Nxd4 {[%clk 0:03:01.4]} 4... g6 {[%clk 0:03:00.4]} 5. c4 {[%clk
0:03:00.9]} 5... Bg7 {[%clk 0:02:58.9]} 6. Be3 {[%clk 0:03:00.6]} 6... Nf6
{[%clk 0:02:59.1]} 7. Nc3 {[%clk 0:03:01.1]} 7... O-O {[%clk 0:02:59.3]} 8. Be2
{[%clk 0:03:00.8]} 8... d6 {[%clk 0:02:58.1]} 9. Qd2 {[%clk 0:03:00.5]} 9... Bd7
{[%clk 0:02:58.4]} 10. O-O {[%clk 0:02:57.7]} 10... Nxd4 {[%clk 0:02:58.3]} 11.
Bxd4 {[%clk 0:02:58.6]} 11... a5 {[%clk 0:02:58.8]} 12. b3 {[%clk 0:02:56.6]}
12... Bc6 {[%clk 0:02:59]} 13. f3 {[%clk 0:02:56.4]} 13... Nd7 {[%clk
0:02:59.1]} 14. Be3 {[%clk 0:02:56.2]} 14... Nc5 {[%clk 0:02:59.3]} 15. Rab1
{[%clk 0:02:55.7]} 15... Be5 {[%clk 0:02:59.3]} 16. Rfc1 {[%clk 0:02:50.8]}
16... e6 {[%clk 0:02:58.7]} 17. Qe1 {[%clk 0:02:49.1]} 17... f5 {[%clk
0:02:44.9]} 18. exf5 {[%clk 0:02:47.5]} 18... gxf5 {[%clk 0:02:45.1]} 19. f4
{[%clk 0:02:47]} 19... Bf6 {[%clk 0:02:41.2]} 20. Nb5 {[%clk 0:02:38.4]} 20...
Bxb5 {[%clk 0:02:33.8]} 21. cxb5 {[%clk 0:02:38]} 21... Ne4 {[%clk 0:02:33.6]}
22. Bf3 {[%clk 0:02:32.9]} 22... d5 {[%clk 0:02:33.5]} 23. Kh1 {[%clk
0:02:08.5]} 23... Qd7 {[%clk 0:02:27.5]} 24. a4 {[%clk 0:02:03.1]} 24... Rfc8
{[%clk 0:02:08.6]} 25. Bb6 {[%clk 0:01:56.8]} 25... Kh8 {[%clk 0:01:53.7]} 26.
Bxa5 {[%clk 0:01:44.2]} 26... Bd4 {[%clk 0:01:52.8]} 27. Bxe4 {[%clk 0:01:41]}
27... fxe4 {[%clk 0:01:51.9]} 28. Bc3 {[%clk 0:01:40.6]} 28... Bxc3 {[%clk
0:01:49.2]} 29. Rxc3 {[%clk 0:01:40.1]} 29... Rxc3 {[%clk 0:01:47.8]} 30. Qxc3+
{[%clk 0:01:39.6]} 30... d4 {[%clk 0:01:48]} 31. Qc5 {[%clk 0:01:39.6]} 31...
Qd5 {[%clk 0:01:37.8]} 32. Qe7 {[%clk 0:01:33.2]} 32... d3 {[%clk 0:01:30.9]}
33. h3 {[%clk 0:01:17.9]} 33... e3 {[%clk 0:01:26.9]} 34. Rc1 {[%clk 0:01:09.5]}
34... Qf5 {[%clk 0:00:35.4]} 35. Rc7 {[%clk 0:01:05.8]} 35... Qg6 {[%clk
0:00:34.1]} 36. Qd6 {[%clk 0:01:01.4]} 36... e2 {[%clk 0:00:25.6]} 37. Qe5+
{[%clk 0:01:01.2]} 37... Kg8 {[%clk 0:00:25.6]} 38. Rd7 {[%clk 0:01:01.4]} 38...
Rf8 {[%clk 0:00:16.3]} 39. f5 {[%clk 0:00:59.3]} 39... Qf6 {[%clk 0:00:12.8]}
40. Qg3+ {[%clk 0:00:55.3]} 40... Kh8 {[%clk 0:00:12.6]} 41. Rxd3 {[%clk
0:00:53.6]} 41... Qxf5 {[%clk 0:00:12.8]} 42. Re3 {[%clk 0:00:53.8]} 42... Qf1+
{[%clk 0:00:12.4]} 43. Kh2 {[%clk 0:00:53.9]} 43... Rg8 {[%clk 0:00:07.4]} 44.
Qe5+ {[%clk 0:00:52.5]} 44... Rg7 {[%clk 0:00:07.8]} 45. Rg3 {[%clk 0:00:48.4]}
45... Qf7 {[%clk 0:00:04]} 46. Rxg7 {[%clk 0:00:48]} 46... Qxg7 {[%clk
0:00:04.2]} 47. Qxe2 {[%clk 0:00:48.6]} 47... Qc7+ {[%clk 0:00:04.9]} 48. g3
{[%clk 0:00:46]} 48... Qc3 {[%clk 0:00:05.1]} 49. Qxe6 {[%clk 0:00:41.4]} 49...
Qd2+ {[%clk 0:00:04.8]} 50. Kg1 {[%clk 0:00:41.9]} 50... Qd1+ {[%clk 0:00:05.2]}
51. Kf2 {[%clk 0:00:42]} 51... Qd4+ {[%clk 0:00:05.6]} 52. Qe3 {[%clk
0:00:40.6]} 52... Qb2+ {[%clk 0:00:05.5]} 53. Kf3 {[%clk 0:00:40.3]} 53... Qf6+
{[%clk 0:00:05.7]} 54. Qf4 {[%clk 0:00:37]} 54... Qc3+ {[%clk 0:00:05.5]} 55.
Kg4 {[%clk 0:00:36.5]} 55... Qg7+ {[%clk 0:00:05.1]} 56. Kh4 {[%clk 0:00:36.6]}
56... Qe7+ {[%clk 0:00:03.6]} 57. Qg5 {[%clk 0:00:36.6]} 57... Qb4+ {[%clk
0:00:03.8]} 58. g4 {[%clk 0:00:33.1]} 58... Qxb3 {[%clk 0:00:04.7]} 59. Qe5+
{[%clk 0:00:29.4]} 59... Kg8 {[%clk 0:00:05]} 60. Qb8+ {[%clk 0:00:29.4]} 60...
Kg7 {[%clk 0:00:05.6]} 61. Qxb7+ {[%clk 0:00:29.9]} 61... Kg8 {[%clk 0:00:06.3]}
62. Qc8+ {[%clk 0:00:28.8]} 1-0

[Event "*** SCC Grand Prix: Titled Tuesday Blitz"]
[Site "Chess.com"]
[Date "2020.07.07"]
[Round "7"]
[White "pastouche06"]
[Black "ValentinDragnev"]
[Result "1-0"]
[WhiteElo "2523"]
[BlackElo "2747"]
[TimeControl "180+1"]
[EndTime "11:20:10 PDT"]
[Termination "pastouche06 won by checkmate"]

1. d4 {[%clk 0:03:00.9]} 1... Nf6 {[%clk 0:02:59.5]} 2. c4 {[%clk 0:03:00.8]}
2... g6 {[%clk 0:03:00]} 3. f3 {[%clk 0:03:00.4]} 3... Bg7 {[%clk 0:02:59.6]} 4.
e4 {[%clk 0:03:00.1]} 4... O-O {[%clk 0:03:00]} 5. Ne2 {[%clk 0:03:00.4]} 5...
d6 {[%clk 0:03:00.1]} 6. Be3 {[%clk 0:03:00.2]} 6... Nc6 {[%clk 0:03:00.3]} 7.
Qd2 {[%clk 0:03:00]} 7... a6 {[%clk 0:03:00.8]} 8. Nbc3 {[%clk 0:02:57.8]} 8...
Rb8 {[%clk 0:03:00.5]} 9. Rc1 {[%clk 0:02:58.2]} 9... Ne8 {[%clk 0:02:51.3]} 10.
g3 {[%clk 0:02:42.2]} 10... Bd7 {[%clk 0:02:46.7]} 11. Nd1 {[%clk 0:02:40.5]}
11... b5 {[%clk 0:02:46.4]} 12. c5 {[%clk 0:02:40.1]} 12... e5 {[%clk
0:02:46.2]} 13. d5 {[%clk 0:02:38.2]} 13... Ne7 {[%clk 0:02:46.2]} 14. Bg2
{[%clk 0:02:29.9]} 14... f5 {[%clk 0:02:45.6]} 15. Nf2 {[%clk 0:02:01.8]} 15...
dxc5 {[%clk 0:02:36]} 16. Bxc5 {[%clk 0:01:54.2]} 16... Nd6 {[%clk 0:02:36]} 17.
Qb4 {[%clk 0:01:46.9]} 17... Bh6 {[%clk 0:02:28.8]} 18. Rd1 {[%clk 0:01:41.7]}
18... fxe4 {[%clk 0:02:28.2]} 19. Nxe4 {[%clk 0:01:36.8]} 19... a5 {[%clk
0:02:21.9]} 20. Qxa5 {[%clk 0:01:25.5]} 20... Ra8 {[%clk 0:02:09.6]} 21. Qb4
{[%clk 0:01:19.2]} 21... Ra4 {[%clk 0:02:07]} 22. Qb3 {[%clk 0:01:05.5]} 22...
Nxe4 {[%clk 0:02:01.9]} 23. d6+ {[%clk 0:00:55.7]} 23... Nd5 {[%clk 0:01:46.1]}
24. Qxd5+ {[%clk 0:00:47.9]} 24... Kh8 {[%clk 0:01:45.5]} 25. fxe4 {[%clk
0:00:43.4]} 25... c6 {[%clk 0:01:44.3]} 26. Qd3 {[%clk 0:00:41]} 26... Rxa2
{[%clk 0:01:37.7]} 27. Qb3 {[%clk 0:00:36.3]} 27... Ra4 {[%clk 0:01:29.1]} 28.
Rf1 {[%clk 0:00:33.9]} 28... Rxf1+ {[%clk 0:01:04.4]} 29. Kxf1 {[%clk
0:00:34.8]} 29... Rc4 {[%clk 0:01:04]} 30. Be3 {[%clk 0:00:34.2]} 30... Bf8
{[%clk 0:00:38.5]} 31. Qd3 {[%clk 0:00:26.8]} 31... Be6 {[%clk 0:00:33.8]} 32.
b3 {[%clk 0:00:23.1]} 32... Rb4 {[%clk 0:00:29.7]} 33. Nc1 {[%clk 0:00:22.3]}
33... Rxb3 {[%clk 0:00:22.3]} 34. Nxb3 {[%clk 0:00:21.7]} 34... Bc4 {[%clk
0:00:22.5]} 35. Kg1 {[%clk 0:00:14.1]} 35... Bxd3 {[%clk 0:00:21.8]} 36. Rxd3
{[%clk 0:00:15]} 36... Qd7 {[%clk 0:00:22.5]} 37. Nc5 {[%clk 0:00:14]} 37... Qa7
{[%clk 0:00:14.3]} 38. d7 {[%clk 0:00:10.8]} 38... Qa1+ {[%clk 0:00:14.7]} 39.
Bf1 {[%clk 0:00:08.9]} 39... Be7 {[%clk 0:00:15.2]} 40. Ne6 {[%clk 0:00:07.6]}
40... Qa5 {[%clk 0:00:12]} 41. d8=Q+ {[%clk 0:00:05.1]} 41... Bxd8 {[%clk
0:00:12.5]} 42. Rxd8+ {[%clk 0:00:05.7]} 42... Qxd8 {[%clk 0:00:13.4]} 43. Nxd8
{[%clk 0:00:06.1]} 43... b4 {[%clk 0:00:14.3]} 44. Nxc6 {[%clk 0:00:06.1]} 44...
h5 {[%clk 0:00:15.2]} 45. Nxe5 {[%clk 0:00:05.5]} 45... h4 {[%clk 0:00:16.1]}
46. Nxg6+ {[%clk 0:00:05.5]} 46... Kg7 {[%clk 0:00:17]} 47. Nxh4 {[%clk
0:00:05.2]} 47... Kf6 {[%clk 0:00:17.9]} 48. Bd4+ {[%clk 0:00:06]} 48... Ke6
{[%clk 0:00:17.8]} 49. Bd3 {[%clk 0:00:06.3]} 49... b3 {[%clk 0:00:18.7]} 50.
Bc4+ {[%clk 0:00:06.6]} 50... Kd6 {[%clk 0:00:19.6]} 51. Bxb3 {[%clk 0:00:07.2]}
51... Kc7 {[%clk 0:00:20.5]} 52. e5 {[%clk 0:00:08]} 52... Kd7 {[%clk
0:00:21.4]} 53. e6+ {[%clk 0:00:08.4]} 53... Ke7 {[%clk 0:00:22.3]} 54. Bc5+
{[%clk 0:00:08.9]} 54... Ke8 {[%clk 0:00:23.2]} 55. e7 {[%clk 0:00:09.7]} 55...
Kd7 {[%clk 0:00:23.5]} 56. Ba4+ {[%clk 0:00:09]} 56... Kc7 {[%clk 0:00:23.3]}
57. e8=Q {[%clk 0:00:09]} 57... Kb7 {[%clk 0:00:24.2]} 58. Qc6+ {[%clk
0:00:08.8]} 58... Kb8 {[%clk 0:00:24]} 59. Bd6+ {[%clk 0:00:08.2]} 59... Ka7
{[%clk 0:00:23.7]} 60. Qc7+ {[%clk 0:00:07.6]} 60... Ka6 {[%clk 0:00:23.3]} 61.
Qb8 {[%clk 0:00:05.3]} 61... Ka5 {[%clk 0:00:22.5]} 62. Qb5# {[%clk 0:00:06.2]}
1-0

[Event "*** SCC Grand Prix: Titled Tuesday Blitz"]
[Site "Chess.com"]
[Date "2020.07.07"]
[Round "7"]
[White "attack2mateU"]
[Black "AwareIdea"]
[Result "1-0"]
[WhiteElo "2629"]
[BlackElo "2473"]
[TimeControl "180+1"]
[EndTime "11:20:11 PDT"]
[Termination "attack2mateU won by resignation"]

1. e4 {[%clk 0:03:00.9]} 1... e5 {[%clk 0:02:59.8]} 2. Nf3 {[%clk 0:03:00.3]}
2... Nc6 {[%clk 0:02:59.7]} 3. Bb5 {[%clk 0:02:58.3]} 3... Nf6 {[%clk
0:02:59.8]} 4. d3 {[%clk 0:02:49.1]} 4... Bc5 {[%clk 0:02:59.2]} 5. c3 {[%clk
0:02:48.3]} 5... d6 {[%clk 0:02:57.9]} 6. O-O {[%clk 0:02:47.2]} 6... O-O {[%clk
0:02:57.7]} 7. Bg5 {[%clk 0:02:32.5]} 7... h6 {[%clk 0:02:56.6]} 8. Bh4 {[%clk
0:02:32.8]} 8... g5 {[%clk 0:02:50.5]} 9. Bg3 {[%clk 0:02:33.3]} 9... Bg4 {[%clk
0:02:47.9]} 10. Nbd2 {[%clk 0:02:31.4]} 10... Bb6 {[%clk 0:02:47.9]} 11. Nc4
{[%clk 0:02:19.8]} 11... Nh5 {[%clk 0:02:41.8]} 12. Bxc6 {[%clk 0:02:05.3]}
12... bxc6 {[%clk 0:02:37.4]} 13. d4 {[%clk 0:01:28.7]} 13... Nxg3 {[%clk
0:02:30.9]} 14. hxg3 {[%clk 0:01:27.2]} 14... exd4 {[%clk 0:02:20.2]} 15. Nxb6
{[%clk 0:01:11.4]} 15... axb6 {[%clk 0:02:17.3]} 16. Qxd4 {[%clk 0:01:12]} 16...
c5 {[%clk 0:02:02.9]} 17. Qd2 {[%clk 0:01:11.8]} 17... Qe7 {[%clk 0:01:59.3]}
18. Nh2 {[%clk 0:01:08.4]} 18... Bd7 {[%clk 0:01:57.9]} 19. Rfe1 {[%clk
0:01:08.1]} 19... Kg7 {[%clk 0:01:47.8]} 20. g4 {[%clk 0:01:05.7]} 20... Bc6
{[%clk 0:01:41.5]} 21. f3 {[%clk 0:01:05.4]} 21... Qe5 {[%clk 0:01:23.6]} 22.
Nf1 {[%clk 0:01:03.6]} 22... Bd7 {[%clk 0:01:22.1]} 23. c4 {[%clk 0:00:52.5]}
23... Qd4+ {[%clk 0:01:13.7]} 24. Qxd4+ {[%clk 0:00:35.4]} 24... cxd4 {[%clk
0:01:14.6]} 25. a3 {[%clk 0:00:22.2]} 25... c5 {[%clk 0:01:10.5]} 26. Kf2 {[%clk
0:00:21.1]} 26... f6 {[%clk 0:01:06.8]} 27. Ke2 {[%clk 0:00:20.5]} 27... b5
{[%clk 0:01:05]} 28. cxb5 {[%clk 0:00:07]} 28... Bxb5+ {[%clk 0:01:05.9]} 29.
Kd2 {[%clk 0:00:07.3]} 29... Bxf1 {[%clk 0:01:02.8]} 30. Rxf1 {[%clk 0:00:08.2]}
30... Rfb8 {[%clk 0:01:03.3]} 31. b4 {[%clk 0:00:05]} 31... cxb4 {[%clk
0:00:55]} 32. axb4 {[%clk 0:00:05.9]} 32... Rxa1 {[%clk 0:00:55.5]} 33. Rxa1
{[%clk 0:00:06.3]} 33... Rxb4 {[%clk 0:00:56.4]} 34. Kd3 {[%clk 0:00:06.8]}
34... Rb2 {[%clk 0:00:53.3]} 35. Rg1 {[%clk 0:00:04.5]} 35... Rb4 {[%clk
0:00:52.8]} 36. Rc1 {[%clk 0:00:05]} 36... Kf7 {[%clk 0:00:51.2]} 37. Rc7+
{[%clk 0:00:03.1]} 37... Ke6 {[%clk 0:00:51.1]} 38. Rh7 {[%clk 0:00:03]} 38...
Ke5 {[%clk 0:00:43.3]} 39. Re7+ {[%clk 0:00:03]} 39... Kf4 {[%clk 0:00:41.1]}
40. Re6 {[%clk 0:00:03.5]} 40... Kg3 {[%clk 0:00:36.3]} 41. Rxd6 {[%clk
0:00:04]} 41... Kxg2 {[%clk 0:00:36.6]} 42. Rxf6 {[%clk 0:00:04.7]} 42... Kg3
{[%clk 0:00:31.9]} 43. e5 {[%clk 0:00:05.1]} 43... Ra4 {[%clk 0:00:18.7]} 44. e6
{[%clk 0:00:05.4]} 44... Ra1 {[%clk 0:00:15.4]} 45. Kxd4 {[%clk 0:00:05.4]}
45... Re1 {[%clk 0:00:15.5]} 46. Kd5 {[%clk 0:00:05.7]} 46... Re3 {[%clk
0:00:09.7]} 47. Kd6 {[%clk 0:00:05.7]} 47... Kh4 {[%clk 0:00:03.1]} 48. e7
{[%clk 0:00:05.7]} 48... h5 {[%clk 0:00:03.4]} 49. gxh5 {[%clk 0:00:05.7]} 49...
Kxh5 {[%clk 0:00:02.8]} 50. Re6 {[%clk 0:00:05.9]} 1-0

[Event "*** SCC Grand Prix: Titled Tuesday Blitz"]
[Site "Chess.com"]
[Date "2020.07.07"]
[Round "7"]
[White "zaur-mammadov"]
[Black "Sychev_Klementy"]
[Result "1-0"]
[WhiteElo "2611"]
[BlackElo "2784"]
[TimeControl "180+1"]
[EndTime "11:20:12 PDT"]
[Termination "zaur-mammadov won on time"]

1. e4 {[%clk 0:03:00.9]} 1... e5 {[%clk 0:02:59.8]} 2. Nf3 {[%clk 0:03:00.3]}
2... Nc6 {[%clk 0:03:00.4]} 3. Nc3 {[%clk 0:03:01]} 3... Nf6 {[%clk 0:02:59.2]}
4. Be2 {[%clk 0:03:01.6]} 4... d5 {[%clk 0:02:57.6]} 5. exd5 {[%clk 0:03:02.5]}
5... Nxd5 {[%clk 0:02:58.5]} 6. O-O {[%clk 0:03:03.3]} 6... Nxc3 {[%clk
0:02:58.4]} 7. bxc3 {[%clk 0:03:04.2]} 7... e4 {[%clk 0:02:54.6]} 8. Ne1 {[%clk
0:03:02.7]} 8... f5 {[%clk 0:02:54]} 9. d3 {[%clk 0:03:02.7]} 9... Be6 {[%clk
0:02:50.4]} 10. Rb1 {[%clk 0:02:58.4]} 10... Rb8 {[%clk 0:02:38.1]} 11. c4
{[%clk 0:02:51.7]} 11... Bc5 {[%clk 0:02:31.6]} 12. Bb2 {[%clk 0:02:18.4]} 12...
O-O {[%clk 0:02:29.3]} 13. Kh1 {[%clk 0:02:18.6]} 13... Qh4 {[%clk 0:02:26]} 14.
g3 {[%clk 0:02:07.6]} 14... Qg5 {[%clk 0:02:07.8]} 15. Ng2 {[%clk 0:02:07.7]}
15... Rbd8 {[%clk 0:02:02.5]} 16. Bc1 {[%clk 0:02:04]} 16... Qf6 {[%clk
0:01:54.5]} 17. Rxb7 {[%clk 0:02:03.5]} 17... Bb6 {[%clk 0:01:54.5]} 18. Ba3
{[%clk 0:01:59.9]} 18... Rf7 {[%clk 0:01:38.4]} 19. Nf4 {[%clk 0:01:36.5]} 19...
Bc8 {[%clk 0:01:36.6]} 20. Nd5 {[%clk 0:01:36.3]} 20... Qh6 {[%clk 0:01:13.3]}
21. Rxb6 {[%clk 0:01:29.7]} 21... axb6 {[%clk 0:01:08.1]} 22. Bc1 {[%clk
0:01:29.5]} 22... Qe6 {[%clk 0:00:59.5]} 23. Bf4 {[%clk 0:01:28.2]} 23... Ne5
{[%clk 0:00:55.1]} 24. d4 {[%clk 0:01:11.9]} 24... c6 {[%clk 0:00:39.9]} 25.
Bxe5 {[%clk 0:01:08.6]} 25... cxd5 {[%clk 0:00:39.2]} 26. cxd5 {[%clk
0:00:54.2]} 26... Qxd5 {[%clk 0:00:39]} 27. c4 {[%clk 0:00:52.6]} 27... Qe6
{[%clk 0:00:39]} 28. Qb3 {[%clk 0:00:49.8]} 28... Bb7 {[%clk 0:00:35.8]} 29. Kg1
{[%clk 0:00:50]} 29... Bc8 {[%clk 0:00:20.5]} 30. Rb1 {[%clk 0:00:42.7]} 30...
Rb7 {[%clk 0:00:20.6]} 31. Qb4 {[%clk 0:00:27.8]} 31... h6 {[%clk 0:00:19.4]}
32. a4 {[%clk 0:00:24.4]} 32... Kh7 {[%clk 0:00:19.2]} 33. Qc3 {[%clk
0:00:19.9]} 33... Re8 {[%clk 0:00:18.5]} 34. Rb4 {[%clk 0:00:20]} 34... Qc6
{[%clk 0:00:16.8]} 35. Qb3 {[%clk 0:00:19.4]} 35... Qg6 {[%clk 0:00:15]} 36. h4
{[%clk 0:00:18.5]} 36... Qc6 {[%clk 0:00:09.1]} 37. d5 {[%clk 0:00:16]} 37...
Qc5 {[%clk 0:00:09.5]} 38. Ba1 {[%clk 0:00:14.6]} 38... Bd7 {[%clk 0:00:09.3]}
39. Qc3 {[%clk 0:00:14.4]} 39... Rg8 {[%clk 0:00:09.2]} 40. Rb1 {[%clk 0:00:13]}
40... Qe7 {[%clk 0:00:08.7]} 41. a5 {[%clk 0:00:12]} 41... Rgb8 {[%clk
0:00:07.9]} 42. a6 {[%clk 0:00:11.2]} 42... Ra7 {[%clk 0:00:08.2]} 43. c5 {[%clk
0:00:11.8]} 43... Rba8 {[%clk 0:00:04.4]} 44. d6 {[%clk 0:00:12]} 44... Qf7
{[%clk 0:00:03.5]} 45. c6 {[%clk 0:00:12.4]} 45... Rc8 {[%clk 0:00:01.6]} 46. c7
{[%clk 0:00:12]} 46... Be6 {[%clk 0:00:01.9]} 47. Bb5 {[%clk 0:00:11.6]} 47...
Qg6 {[%clk 0:00:01.5]} 48. Qe5 {[%clk 0:00:11.1]} 1-0